Workbook

Sheet Вентиляция Турков
A2: =TODAY() -> 2023-07-07 | B2: Данный сметный расчёт действителен 7 календарных дней. По истечению срока, цены могут быть изменены.
A3: Сметный расчет Вентиляция | I3: пие
A4: Приточная вентиляция
A5: Материалы/услуги | B5: Описание | C5: Кол-во | D5: Ед.изм | E5: Мат-ал, руб | F5: Работа, руб | G5: Итого, руб | I5: Материал | J5: Бригада | K5: Прораб | L5: Итого | M5: Рента
A7: Первый этап | B7: Воздуховод гофрированный 2-х слойный в бухте 50м | D7: бухт | E7: =I7/0.7*J80 -> 0 | G7: =E7+F7 -> 0 | I7: =C7*Узлы!D91 -> 0 | L7: =SUM(I7:K7) -> 0 | M7: =IF(G7=0,"",(G7-I7)/G7) -> 
B8: Комплект прокладок, муфт, заглушек для гофрированного воздуховода (на 1 выход) | C8: =(C9*8)+(C10*12)+(C11*16)+(C12*20) -> 0 | D8: шт | E8: =I8/0.7*J80 -> 0 | G8: 0 | I8: =C8*(Узлы!D92+Узлы!D93+Узлы!D94+Узлы!D95+Узлы!D96) -> 0 | L8: =SUM(I8:K8) -> 0 | M8: =IF(G8=0,"",(G8-I8)/G8) -> 
B9: Коллектор (воздухораспределительная коробка) на 8 выходов | D9: шт | E9: =I9/0.85*J80 -> 0 | G9: 0 | I9: =C9*Узлы!D121 -> 0 | J9: =C9*Работы!$B$8 -> 0 | K9: =J9*20% -> 0 | L9: 0
B10: Коллектор (воздухораспределительная коробка) на 12 выходов | D10: шт | E10: =I10/0.85*J80 -> 0 | G10: 0 | I10: =C10*Узлы!D122 -> 0 | J10: =C10*Работы!$B$8 -> 0 | K10: =J10*20% -> 0 | L10: 0
B11: Коллектор (воздухораспределительная коробка) на 16 выходов | D11: шт | E11: =I11/0.85*J80 -> 0 | G11: 0 | I11: =C11*Узлы!D123 -> 0 | J11: =C11*Работы!$B$8 -> 0 | K11: =J11*20% -> 0 | L11: 0
B12: Коллектор (воздухораспределительная коробка) на 20 выходов | D12: шт | E12: =I12/0.85*J80 -> 0 | G12: 0 | I12: =C12*Узлы!D124 -> 0 | J12: =C12*Работы!$B$8 -> 0 | K12: 0 | L12: 0
B13: Вентиляционная точка (пленум для круглых диффузоров) | D13: шт | E13: =I13/0.85*J80 -> 0 | G13: 0 | I13: =C13*Узлы!D131 -> 0 | J13: =C13*Работы!B7 -> 0 | K13: 0 | L13: 0
B14: Вентиляционная точка (пленум для плоских решёток) | D14: шт | E14: =I14/0.85*J80 -> 0 | G14: 0 | I14: =C14*Узлы!D126 -> 0 | J14: =C14*Работы!B7 -> 0 | K14: 0 | L14: 0
B15: Расходные материалы, крепёж | D15: шт | E15: =I15/0.7*J80 -> 0 | G15: 0 | I15: =C15*Узлы!D117 -> 0 | L15: =SUM(I15:K15) -> 0
A16: Монтаж системы вентиляции 1 этап | F16: =SUM(J7:K14)/0.5*K80 -> 0 | L16: 0 | M16: =IF(F16=0,"",(F16-SUM(J7:K15))/F16) -> 
A17: Проектирование | B17: Разработка документов для монтажа системы вентиляции | D17: Усл. | F17: =(J17+K17)/0.75 -> 0 | G17: =E17+F17 -> 0 | L17: =SUM(J17:K17) -> 0 | M17: =IF(G17=0,"",(G17-L17)/G17) -> 
A18: ИТОГО ПО ЭТАПУ 1 | E18: =SUM(E7:E15) -> 0 | F18: =F16+F17 -> 0 | G18: =E18+F18 -> 0
A19: Второй этап | B19: 1. Приточно-вытяжная установка Zenit 500 Standart EL/EL Е 2ст рекуператором, с электронагревателем, автоматикой | D19: шт | E19: =I19/0.7*J80 -> 0 | G19: =E19+F19 -> 0 | I19: =C19*Узлы!D11 -> 0 | J19: =C19*Работы!B2 -> 0 | K19: 0 | L19: 0 | M19: =IF(G19=0,"",(G19-I19)/G19) -> 
B20: Заслонка D200 с электроприводом и возвратной пружиной | D20: шт | E20: =I20/0.7*J80 -> 0 | G20: =E20+F20 -> 0 | I20: =C20*Узлы!D12 -> 0 | L20: 0 | M20: =IF(G20=0,"",(G20-I20)/G20) -> 
B21: Блок охлаждения 2,5кВт: | D21: шт | E21: =I21/0.7*J80 -> 0 | G21: 0 | L21: 0
B22: NEW COOL-BOX i 200D-600 2,5 кВт | D22: шт
B23: ККБ NEW COOL-BOX k 2.5 | D23: шт
B24: Комплект фильтров для первого обслуживания (Фильтр карманный F5, комплект 2 шт.) | D24: шт | E24: =I24/0.7*J80 -> 0 | G24: 0 | I24: =C24*Узлы!D16 -> 0 | L24: 0
B25: Комбинированная приточно-вытяжная решётка 200D | D25: шт | E25: =I25/0.7*J80 -> 0 | G25: 0 | I25: =C25*Узлы!D17 -> 0 | J25: =C25*Работы!B5 -> 0 | K25: 0 | L25: 0
B26: 1. Приточно-вытяжная установка Zenit 700 Standart EL/EL Е 2ст рекуператором, с электронагревателем, автоматикой | D26: шт | E26: =I26/0.7*J80 -> 0 | G26: 0 | I26: =C26*Узлы!D19 -> 0 | J26: =C26*Работы!B2 -> 0 | K26: 0 | L26: 0
B27: Заслонка D250 с электроприводом и возвратной пружиной | D27: шт | E27: =I27/0.7*J80 -> 0 | G27: 0 | I27: =C27*Узлы!D20 -> 0 | L27: 0
B28: Блок охлаждения 3,5кВт: | D28: шт | E28: =I28/0.7*J80 -> 0 | G28: 0 | L28: 0
B29: NEW COOL-BOX i 250D-1000 3,5 кВт | D29: шт
B30: ККБ NEW COOL-BOX k 3.5 | D30: шт
B31: Комплект фильтров для первого обслуживания (Фильтр карманный F5, комплект 2 шт.) | D31: шт | E31: =I31/0.7*J80 -> 0 | G31: 0 | I31: =C31*Узлы!D24 -> 0 | L31: 0
B32: Комбинированная приточно-вытяжная решётка 250D | D32: шт | E32: =I32/0.7*J80 -> 0 | G32: 0 | I32: =C32*Узлы!D25 -> 0 | J32: =C32*Работы!B5 -> 0 | K32: 0 | L32: 0
B33: 1. Приточно-вытяжная установка Zenit 350 HECO EL/EL Е с 3ступ рекуперацией с электронагревателем, автоматикой | D33: шт | E33: =I33/0.7*J80 -> 0 | G33: 0 | I33: =C33*Узлы!D27 -> 0 | J33: =C33*Работы!B2 -> 0 | K33: 0 | L33: 0
B34: Заслонка D160 с электроприводом и возвратной пружиной | D34: шт | E34: =I34/0.7*J80 -> 0 | G34: 0 | I34: =C34*Узлы!D28 -> 0 | L34: 0
B35: Блок охлаждения 2,0кВт: | D35: шт | E35: =I35/0.7*J80 -> 0 | G35: 0 | L35: 0
B36: NEW COOL-BOX i 160D-400 2,0 кВ | D36: шт
B37: ККБ NEW COOL-BOX k 2.0 | D37: шт
B38: Комплект фильтров для первого обслуживания (Фильтр карманный F5) | D38: шт | E38: =I38/0.7*J80 -> 0 | G38: 0 | I38: =C38*Узлы!D32 -> 0 | L38: 0
B39: Комбинированная приточно-вытяжная решётка 160D | D39: шт | E39: =I39/0.7*J80 -> 0 | G39: 0 | I39: =C39*Узлы!D33 -> 0 | J39: =C39*Работы!B5 -> 0 | K39: 0 | L39: 0
B40: 1. Приточно-вытяжная установка Zenit 550 HECO EL/EL E с рекуперацией с электронагревателем, автоматикой | D40: шт | E40: =I40/0.7*J80 -> 0 | G40: 0 | I40: =C40*Узлы!D35 -> 0 | J40: =C40*Работы!B2 -> 0 | K40: 0 | L40: 0
B41: Заслонка D200 с электроприводом и возвратной пружиной | D41: шт | E41: =I41/0.7*J80 -> 0 | G41: 0 | I41: =C41*Узлы!D36 -> 0 | L41: 0
B42: Блок охлаждения 2,5кВт: | D42: шт | E42: =I42/0.7*J80 -> 0 | G42: 0 | L42: 0
B43: NEW COOL-BOX i 200D-600 2,5 кВт | D43: шт
B44: ККБ NEW COOL-BOX k 2.5 | D44: шт
B45: Комплект фильтров для первого обслуживания (Фильтр карманный F5, комплект 2 шт.) | D45: шт | E45: =I45/0.7*J80 -> 0 | G45: 0 | I45: =C45*Узлы!D40 -> 0 | L45: 0
B46: Комбинированная приточно-вытяжная решётка 200D | D46: шт | E46: =I46/0.7*J80 -> 0 | G46: 0 | I46: =C46*Узлы!D41 -> 0 | J46: =C46*Работы!B5 -> 0 | K46: 0 | L46: 0
B47: 1. Приточно-вытяжная установка Zenit 750 HECO EL/EL E с рекуперацией с электронагревателем, автоматикой | D47: шт | E47: =I47/0.7*J80 -> 0 | G47: 0 | I47: =C47*Узлы!D43 -> 0 | J47: =C47*Работы!B2 -> 0 | K47: 0 | L47: 0
B48: Заслонка D250 с электроприводом и возвратной пружиной | D48: шт | E48: =I48/0.7*J80 -> 0 | G48: 0 | I48: =C48*Узлы!D44 -> 0 | L48: 0
B49: Блок охлаждения 3,5кВт: | D49: шт | E49: =I49/0.7*J80 -> 0 | G49: 0 | L49: 0
B50: NEW COOL-BOX i 250D-1000 3,5 кВт | D50: шт
B51: ККБ NEW COOL-BOX k 3.5 | D51: шт
B52: Комплект фильтров для первого обслуживания (Фильтр карманный F5, комплект 2 шт.) | D52: шт | E52: =I52/0.7*J80 -> 0 | G52: 0 | I52: =C52*Узлы!D48 -> 0 | L52: 0
B53: Комбинированная приточно-вытяжная решётка 250D | D53: шт | E53: =I53/0.7*J80 -> 0 | G53: 0 | I53: =C53*Узлы!D49 -> 0 | J53: =C53*Работы!B5 -> 0 | K53: 0 | L53: 0
B54: Кронштейны для напольного/настенного крепления | D54: компл. | E54: =I54/0.7*J80 -> 0 | G54: =E54+F54 -> 0 | I54: =C54*Узлы!D97 -> 0 | L54: 0
B55: Электроподключения установки, пульта, заслонок | D55: компл. | E55: =I55/0.7*J80 -> 0 | G55: =E55+F55 -> 0 | I55: =C55*Узлы!D118 -> 0 | L55: 0
B56: Датчик СО2 | D56: шт | E56: =I56/0.7*J80 -> 0 | G56: 0 | I56: =C56*Узлы!D86 -> 0 | L56: 0
B57: Пульт в сборе | D57: шт | E57: =I57/0.7*J80 -> 0 | G57: 0 | I57: =C57*Узлы!D89 -> 0 | L57: 0
B58: Комплект шумоглушителей и дроссельных клапанов (2шумоглишителя, 2клапана) | D58: компл. | E58: =I58/0.7*J80 -> 0 | G58: 0 | I58: =C58*Узлы!D119 -> 0 | J58: =C58*(Работы!B10*2) -> 0 | K58: 0 | L58: 0
B59: Магистральные воздуховоды и фасонные изделия | D59: компл. | E59: =I59/0.7*J80 -> 0 | G59: 0 | I59: =C59*Узлы!D128 -> 0 | J59: =SUM(C9:C12)*Работы!B9 -> 0 | K59: 0 | L59: 0
B60: Установка диффузора/решётки | C60: =C8 -> 0 | D60: шт | E60: =I60/0.7*J80 -> 0 | G60: 0 | I60: =C60*Узлы!D133 -> 0 | L60: 0
B61: Изоляция, крепеж, расходные материалы | D61: компл. | E61: =I61/0.7*J80 -> 0 | G61: 0 | I61: =C61*Узлы!D129 -> 0 | L61: 0
M62: =IF(G62=0,"",(G62-L62)/G62) -> 
A63: Монтаж системы вентиляции 2 этап | D63: Усл. | F63: =SUM(J19:K61)/0.5*K80 -> 0 | G63: =F63 -> 0 | L63: =SUM(J63:K63) -> 0 | M63: =IF(G63=0,"",(G63-SUM(J19:K61))/G63) -> 
A64: ИТОГО ПО ЭТАПУ 2 | E64: =SUM(E19:E61) -> 0 | F64: =F63 -> 0
A65: Итого материал: | F65: =SUM(E7:E61)-E18 -> 0 | L65: =SUM(I7:I63) -> 0 | M65: =IF(F65=0,"",(F65-L65)/F65) -> 
A66: Работа: | F66: =SUM(F7:F63)-F18 -> 0 | L66: =SUM(J7:K63) -> 0 | M66: =IF(F66=0,"",(F66-L66)/F66) -> 
A67: Дополнительно
A68: Материалы/услуги | B68: Описание | C68: Кол-во | D68: Ед.изм | E68: Мат-ал, руб | F68: Работа, руб | G68: Итого, руб | I68: Материал | J68: Бригада | K68: Прораб | L68: Итого | M68: Рента
A69: Проходные отверстия в плите | B69: Алмазное сверление | C69: 1 | D69: шт. | F69: =IF(C69=0,0,IF(C69<4,11000,IF(C69>3,9000+2300*(C69-3)))) -> 11000 | G69: =F69+E69 -> 11000 | J69: 10000
A70: Подготовительные и накладные расходы | B70: Включают разработку комплекта документов для монтажа, проверку ОТК и приемку каждого этапа работ инженерами технического надзора, соблюдение стандарта компании | C70: 1 | D70: Усл. | F70: =51000 -> 51000 | G70: =F70*C70 -> 51000 | I70: =12500+(C60*700) -> 12500 | J70: =(1500+1500+1500)*2 -> 9000 | K70: =2500*2 -> 5000 | L70: =(5500*2)+6500 -> 17500
A71: Транспортные расходы | B71: Доставка оборудования и материалов на объект | C71: 1 | D71: усл. | F71: =L71/0.8 -> 37500 | G71: =F71 -> 37500 | L71: 30000
A72: Итого по смете: | F72: =SUM(F65:G66,G69:G71) -> 99500 | I72: =SUM(I7:I63)+I70 -> 12500 | J72: =SUM(J7:J63,J69:J71) -> 19000 | K72: =SUM(K7:K63,K69:K71) -> 5000 | L72: =SUM(L69:L71,I72:K72) -> 84000 | M72: =IF(F74=0,"",(F74-L72)/F74) -> 0.1557788945
A73: Скидка:
A74: Итого по смете со скидкой: | F74: =F72-G73 -> 99500
A75: * При выполнении разводки под потолком необходимо добавить декоративный короб. При выполнении разводки в межэтажном перекрытии необходима дополнительная обрешётка.
A76: ** ПНР выполняется по факту готовности объекта | G76: =Узлы!D1 -> 2023-07-07
J77: Коэффициент
J79: Мат | K79: Раб
J80: 1 | K80: 1

Sheet Проект до 250м²
A2: Прайс-лист на проектные работы квартиры и дома до 250 м² | K2: Итоговое коммереское предложение
A3: 1 | B3: Предварительная стадия | F3: Сумма | K3: 1 | L3: Предварительная стадия | M3: шт | N3: 1 | O3: =F9 -> 10800
A4: 1.1 | B4: Сбор исходных данных | C4: шт | D4: 1 | E4: 3600 | F4: =E4*D4 -> 3600 | K4: 2 | L4: Раздел вентиляции | M4: м2 | N4: =D11 -> 109.29 | O4: =F18 -> 25016.46
A5: 1.2 | B5: Выезд на объект (в пределах МКАД) | C5: шт | D5: 0 | E5: 6000 | F5: =E5*D5 -> 0 | G5: Убирается из сметы при отсутвии потребности выезда | K5: 3 | L5: Раздел кондиционирования | M5: м2 | N5: =D23 -> 0 | O5: =F30 -> 0
A6: 1.3 | B6: Составление технического задания вентиляция | C6: шт | D6: 1 | E6: 4800 | F6: 4800 | K6: 4 | L6: Раздел увлажнения | M6: м2 | N6: =D11 -> 109.29 | O6: =F32+F33 -> 0
A7: 1.4 | B7: Составление технического задания кондиционирование | C7: шт | D7: 0 | E7: 4800 | F7: 0 | G7: Убирается из сметы при отсутвии кондиционирования | L7: ИТОГО по предложению | O7: =SUM(O3:O6) -> 35816.46
A8: 1.5 | B8: Отправка проекта и документов | C8: шт | D8: 1 | E8: 2400 | F8: 2400
B9: ИТОГО по предварительной стадии: | F9: =SUM(F4:F8) -> 10800
A10: 2 | B10: Проект вентиляции | F10: Сумма
A11: 2.1 | B11: Расчет и утверждение воздухообмена | C11: м² | D11: =58.45+55.73-2.7-2.19 -> 109.29 | E11: =20*1.2 -> 24 | F11: =E11*D11 -> 2622.96
A12: 2.2 | B12: Подбор оборудования вентиляции | C12: м² | D12: =58.45+55.73-2.7-2.19 -> 109.29 | E12: =20*1.2 -> 24 | F12: 2622.96
A13: 2.3 | B13: Планы системы вентиляции | C13: м² | D13: 109.29 | E13: =30*1.2 -> 36 | F13: 3934.44 | K13: Заказчику направлять только данный вариант КП, подробную смету только при доп. запросе заказчика
A14: 2.4 | B14: Спецификация вентиляции | C14: м² | D14: 109.29 | E14: =35*1.2 -> 42 | F14: 4590.18
A15: 2.5 | B15: Изометрическая схема вентиляция | C15: м² | D15: 109.29 | E15: =20*1.2 -> 24 | F15: 2622.96
A16: 2.6 | B16: Техническое задание на подключение силового электропитания и план автоматизации | C16: м² | D16: 109.29 | E16: =20*1.2 -> 24 | F16: 2622.96
A17: 2.7 | B17: Изготовление пояснительной записки | C17: шт | D17: 1 | E17: =5000*1.2 -> 6000 | F17: =E17*D17 -> 6000
B18: ИТОГО за раздел вентиляции: | F18: =SUM(F11:F17) -> 25016.46
A19: 3 | B19: Проект кондиционирования | F19: Сумма | G19: Указывать площадь ТОЛЬКО обслуживаемых помещений (Σ спален, детских, кабинетов)
A20: 3.1 | B20: Расчет теплопритоков | C20: м² | D20: 0 | E20: =30*1.2 -> 36 | F20: =D20*E20 -> 0
A21: 3.2 | B21: Подбор оборудования кондиционирования | C21: м² | D21: 0 | E21: =20*1.2 -> 24 | F21: =D21*E21 -> 0
A22: 3.3 | B22: Планы системы канального кондиционирования | C22: м² | D22: 0 | E22: =35*1.2 -> 42 | F22: 0 | G22: Убирается из сметы при отсутвии канального кондиционирования
A23: 3.4 | B23: Планы системы фреонового трубопровода и дренажа | C23: м² | D23: 0 | E23: =30*1.2 -> 36 | F23: 0
A24: 3.5 | B24: Спецификация вентразводки канального кондиционирования | C24: м² | D24: 0 | E24: =20*1.2 -> 24 | F24: 0 | G24: Убирается из сметы при отсутвии канального кондиционирования
A25: 3.6 | B25: Спецификация фреонового трубопровода и дренажа | C25: м² | D25: 0 | E25: =20*1.2 -> 24 | F25: 0
A26: 3.7 | B26: Изометрическая схема вентразводки канального кондиционирования | C26: м² | D26: 0 | E26: =20*1.2 -> 24 | F26: 0 | G26: Убирается из сметы при отсутвии канального кондиционирования
A27: 3.8 | B27: Изометрическая схема фреонового трубопровода и дренажа | C27: м² | D27: 0 | E27: =20*1.2 -> 24 | F27: 0
A28: 3.9 | B28: Техническое задание на подключение силового электропитания и автоматизации кондиционирования | C28: м² | D28: 0 | E28: =20*1.2 -> 24 | F28: 0
A29: 3.10 | B29: Изготовление пояснительной записки | C29: шт | D29: 0 | E29: =5000*1.2 -> 6000 | F29: 0
B30: ИТОГО за раздел кондиционирования: | F30: =SUM(F20:F29) -> 0 | G30: при потребности в центральном охладителе в проекте в ячейке площадь указывать 0 м², стоимость давать фиксированную 10 000 руб.
A31: 4 | B31: Проект увлажнения | F31: Сумма | G31: При расчете проекта увлажнения выбрать корректную площадь из предложенных вариантов
A32: 4.1 | B32: Объект менее 100 м² | C32: шт | D32: 0 | E32: 15000 | F32: =E32*D32 -> 0
A33: 4.2 | B33: Объект более 100 м² до 250 м² | C33: шт | D33: 0 | E33: 10000 | F33: =E33*D33 -> 0
B34: ИТОГО по предложению | F34: =(F9+F18+F30+F32+F33) -> 35816.46
A37: 5 | B37: ОПЦИОНАЛЬНО | F37: Сумма
A38: 5.1 | B38: Дополнительная рабочая встреча | C38: шт | D38: 1 | E38: =5000*1.2 -> 6000 | F38: =E38*D38 -> 6000
A39: 5.2 | B39: VAV система | C39: шт | D39: 1 | E39: =10000*1.2 -> 12000 | F39: 12000
A40: 5.3 | B40: Выезд на объект до 50км от МКАД | C40: шт | D40: 1 | E40: =8000*1.2 -> 9600 | F40: 9600
A42: При нестандартных объектах суммы разделов умножать на дополнительный коэффициент
A43: 1 | B43: Коммерческие и административные помещения | E43: 0.7
A44: 2 | B44: Фахверк | E44: 1.5
B47: Примечания:
A48: 1 | B48: Возможно изготовление монтажной схемы. Тогда позиции, общие данные, пояснительная записка, изометрические схемы вычитаются из стоимости проекта
A49: 2 | B49: Средняя цена за 1 м² | D49: м² | E49: руб/м²
B50: Проект вентиляции | D50: =D15 -> 109.29 | E50: =F18/D50 -> 228.8998079
B51: Проект канального кондиционирования | D51: =D22 -> 0 | E51: =F30/D51 -> 
B52: Проект настенного кондиционирования | D52: =D20 -> 0 | E52: =F30/D52 -> 
B53: Проект увлажнения | D53: =D11 -> 109.29 | E53: =(F32+F33)/D53 -> 0
A54: 3 | B54: ОБЩАЯ СТОИМОСТЬ | E54: =F34/D11 -> 327.719462

Sheet Проект до 500 м²
A2: Прайс-лист на проектные работы квартиры и дома от 250 м² до 500 м² | K2: Итоговое коммереское предложение
A3: 1 | B3: Предварительная стадия | F3: Сумма | K3: 1 | L3: Предварительная стадия | M3: шт | N3: 1 | O3: =F9 -> 15600
A4: 1.1 | B4: Сбор исходных данных | C4: шт | D4: 1 | E4: =3000*1.2 -> 3600 | F4: =E4*D4 -> 3600 | K4: 2 | L4: Раздел вентиляции | M4: м² | N4: =D11 -> 463 | O4: =F18 -> 79894.8
A5: 1.2 | B5: Выезд на объект (в пределах МКАД) | C5: шт | D5: 0 | E5: 8000 | F5: =E5*D5 -> 0 | G5: Убирается из сметы при отсутвии потребности выезда | K5: 3 | L5: Раздел кондиционирования | M5: м² | N5: =D20 -> 282 | O5: =F30 -> 47284.8
A6: 1.3 | B6: Составление технического задания вентиляция | C6: шт | D6: 1 | E6: =4000*1.2 -> 4800 | F6: =E6*D6 -> 4800 | K6: 4 | L6: Раздел увлажнения | M6: м² | N6: =D11 -> 463 | O6: =F32 -> 0
A7: 1.4 | B7: Составление технического задания кондиционирование | C7: шт | D7: 1 | E7: =4000*1.2 -> 4800 | F7: =E7*D7 -> 4800 | G7: Убирается из сметы при отсутвии кондиционирования | L7: ИТОГО по предложению | O7: =SUM(O3:O6) -> 142779.6
A8: 1.5 | B8: Отправка проекта и документов | C8: шт | D8: 1 | E8: =2000*1.2 -> 2400 | F8: =E8*D8 -> 2400
B9: ИТОГО по предварительной стадии: | F9: =SUM(F4:F8) -> 15600
A10: 2 | B10: Проект вентиляции | F10: Сумма
A11: 2.1 | B11: Расчет и утверждение воздухообмена | C11: м² | D11: 463 | E11: =18*1.2 -> 21.6 | F11: =E11*D11 -> 10000.8
A12: 2.2 | B12: Подбор оборудования вентиляции | C12: м² | D12: 463 | E12: =18*1.2 -> 21.6 | F12: =E12*D12 -> 10000.8 | K12: Заказчику направлять только данный вариант КП, подробную смету только при доп. запросе заказчика
A13: 2.3 | B13: Планы системы вентиляции | C13: м² | D13: 463 | E13: =28*1.2 -> 33.6 | F13: 15556.8
A14: 2.4 | B14: Спецификация вентиляции | C14: м² | D14: 463 | E14: =33*1.2 -> 39.6 | F14: 18334.8
A15: 2.5 | B15: Изометрическая схема вентиляция | C15: м² | D15: 463 | E15: =18*1.2 -> 21.6 | F15: 10000.8
A16: 2.6 | B16: Техническое задание на подключение силового электропитания и план автоматизации | C16: м² | D16: 463 | E16: =18*1.2 -> 21.6 | F16: 10000.8
A17: 2.7 | B17: Изготовление пояснительной записки | C17: шт | D17: 1 | E17: =5000*1.2 -> 6000 | F17: 6000
B18: ИТОГО за раздел вентиляции: | F18: =SUM(F11:F17) -> 79894.8
A19: 3 | B19: Проект кондиционирования* | F19: Сумма | G19: Указывать площадь ТОЛЬКО обслуживаемых помещений (Σ спален, детских кабинетов)
A20: 3.1 | B20: Расчет теплопритоков | C20: м² | D20: 282 | E20: =27*1.2 -> 32.4 | F20: =D20*E20 -> 9136.8
A21: 3.2 | B21: Подбор оборудования кондиционирования | C21: м² | D21: 282 | E21: =17*1.2 -> 20.4 | F21: =D21*E21 -> 5752.8
A22: 3.3 | B22: Планы системы канального кондиционирования | C22: м² | D22: 0 | E22: =32*1.2 -> 38.4 | F22: 0 | G22: Убирается из сметы при отсутвии канального кондиционирования
A23: 3.4 | B23: Планы системы фреонового трубопровода и дренажа | C23: м² | D23: 282 | E23: =27*1.2 -> 32.4 | F23: 9136.8
A24: 3.5 | B24: Спецификация вентразводки канального кондиционирования | C24: м² | D24: 0 | E24: =17*1.2 -> 20.4 | F24: 0 | G24: Убирается из сметы при отсутвии канального кондиционирования
A25: 3.6 | B25: Спецификация фреонового трубопровода и дренажа | C25: м² | D25: 282 | E25: =17*1.2 -> 20.4 | F25: 5752.8
A26: 3.7 | B26: Изометрическая схема вентразводки канального кондиционирования | C26: м² | D26: 0 | E26: =17*1.2 -> 20.4 | F26: 0 | G26: Убирается из сметы при отсутвии канального кондиционирования
A27: 3.8 | B27: Изометрическая схема фреонового трубопровода и дренажа | C27: м² | D27: 282 | E27: =17*1.2 -> 20.4 | F27: 5752.8
A28: 3.9 | B28: Техническое задание на подключение силового электропитания и автоматизации кондиционирования | C28: м² | D28: 282 | E28: =17*1.2 -> 20.4 | F28: 5752.8
A29: 3.10 | B29: Изготовление пояснительной записки | C29: шт | D29: 1 | E29: =5000*1.2 -> 6000 | F29: 6000
B30: ИТОГО за раздел кондиционирования: | F30: =SUM(F20:F29) -> 47284.8 | G30: при потребности в центральном охладителе в проекте в ячейке площадь указывать 0 м², стоимость давать фиксированную 15 000 руб.
A31: 4 | B31: Проект увлажнения | F31: Сумма
A32: 4.1 | B32: Объект от 250 м² до 500 м² | C32: шт | D32: 0 | E32: 10000 | F32: =E32*D32 -> 0
B33: ИТОГО по предложению | F33: =F9+F18+F30+F32 -> 142779.6
A35: 5 | B35: ОПЦИОНАЛЬНО | F35: Сумма
A36: 5.1 | B36: Дополнительная рабочая встреча | C36: шт | D36: 1 | E36: =5000*1.2 -> 6000 | F36: =E36*D36 -> 6000
A37: 5.2 | B37: VAV система | C37: шт | D37: 1 | E37: =10000*1.2 -> 12000 | F37: =E37*D37 -> 12000
A38: 5.3 | B38: Выезд на объект до 50км/МКАД | C38: шт | D38: 1 | E38: =8000*1.2 -> 9600 | F38: =E38*D38 -> 9600
A40: При нестандартных объектах суммы разделов умножать на дополнительный коэффициент
A41: 1 | B41: Коммерческие и административные помещения | E41: 0.7
A42: 2 | B42: Фахверк | E42: 1.5
B45: Примечания:
A46: 1 | B46: Возможно изготовление монтажной схемы. Тогда позиции, общие данные, пояснительная записка, изометрические схемы вычитаются из стоимости проекта
A47: 2 | B47: Средняя цена за 1 м² | D47: м² | E47: руб/м²
B48: Проект вентиляции | D48: =D15 -> 463 | E48: =F18/D48 -> 172.5589633
B49: Проект канального кондиционирования | D49: =D22 -> 0 | E49: =F30/D49 -> 
B50: Проект настенного кондиционирования | D50: =D20 -> 282 | E50: =F30/D50 -> 167.6765957
B51: Проект увлажнения | D51: =D11 -> 463 | E51: =F32/D51 -> 0
A52: 3 | B52: ОБЩАЯ СТОИМОСТЬ | E52: =F33/D11 -> 308.3792657

Sheet Проект более 500 м²
A2: Прайс-лист на проектные работы квартиры и дома более 500 м² | K2: Итоговое коммереское предложение
A3: 1 | B3: Предварительная стадия | F3: Сумма | K3: 1 | L3: Предварительная стадия | M3: шт | N3: 1 | O3: =F9 -> 15600
A4: 1.1 | B4: Сбор исходных данных | C4: шт | D4: 1 | E4: =3000*1.2 -> 3600 | F4: =E4*D4 -> 3600 | K4: 2 | L4: Раздел вентиляции | M4: м2 | N4: =D11 -> 860 | O4: =F18 -> 118488
A5: 1.2 | B5: Выезд на объект (в пределах МКАД) | C5: шт | D5: 0 | E5: 6000 | F5: =E5*D5 -> 0 | G5: Убирается из сметы при отсутвии потребности выезда | K5: 3 | L5: Раздел кондиционирования | M5: м2 | N5: =D20 -> 313 | O5: =F30 -> 48067.2
A6: 1.3 | B6: Составление технического задания вентиляция | C6: шт | D6: 1 | E6: =4000*1.2 -> 4800 | F6: =E6*D6 -> 4800 | K6: 4 | L6: Раздел увлажнения | M6: м2
A7: 1.4 | B7: Составление технического задания кондиционирование | C7: шт | D7: 1 | E7: =4000*1.2 -> 4800 | F7: 4800 | G7: Убирается из сметы при отсутвии кондиционирования | L7: ИТОГО по предложению | O7: =SUM(O3:O6) -> 182155.2
A8: 1.5 | B8: Отправка проекта и документов | C8: шт | D8: 1 | E8: =2000*1.2 -> 2400 | F8: 2400
B9: ИТОГО по предварительной стадии: | F9: =SUM(F4:F8) -> 15600
A10: 2 | B10: Проект вентиляции | F10: Сумма
A11: 2.1 | B11: Расчет и утверждение воздухообмена | C11: м² | D11: 860 | E11: =14*1.2 -> 16.8 | F11: =E11*D11 -> 14448
A12: 2.2 | B12: Подбор оборудования вентиляции | C12: м² | D12: 860 | E12: =14*1.2 -> 16.8 | F12: =E12*D12 -> 14448
A13: 2.3 | B13: Планы системы вентиляции | C13: м² | D13: 860 | E13: =24*1.2 -> 28.8 | F13: =E13*D13 -> 24768 | K13: Заказчику направлять только данный вариант КП, подробную смету только при доп. запросе заказчика
A14: 2.4 | B14: Спецификация вентиляции | C14: м² | D14: 860 | E14: =29*1.2 -> 34.8 | F14: 29928
A15: 2.5 | B15: Изометрическая схема вентиляция | C15: м² | D15: 860 | E15: =14*1.2 -> 16.8 | F15: 14448
A16: 2.6 | B16: Техническое задание на подключение силового электропитания и план автоматизации | C16: м² | D16: 860 | E16: =14*1.2 -> 16.8 | F16: 14448
A17: 2.7 | B17: Изготовление пояснительной записки | C17: шт | D17: 1 | E17: =5000*1.2 -> 6000 | F17: =E17*D17 -> 6000
B18: ИТОГО за раздел вентиляции: | F18: =SUM(F11:F17) -> 118488
A19: 3 | B19: Проект кондиционирования | F19: Сумма | G19: Указывать площадь ТОЛЬКО обслуживаемых помещений (Σ спален, детских, кабинетов)
A20: 3.1 | B20: Расчет теплопритоков | C20: м² | D20: 313 | E20: =24*1.2 -> 28.8 | F20: =D20*E20 -> 9014.4
A21: 3.2 | B21: Подбор оборудования кондиционирования | C21: м² | D21: 313 | E21: =16*1.2 -> 19.2 | F21: 6009.6
A22: 3.3 | B22: Планы системы канального кондиционирования | C22: м² | D22: 0 | E22: =29*1.2 -> 34.8 | F22: 0 | G22: Убирается из сметы при отсутвии канального кондиционирования
A23: 3.4 | B23: Планы системы фреонового трубопровода и дренажа | C23: м² | D23: 313 | E23: =24*1.2 -> 28.8 | F23: 9014.4
A24: 3.5 | B24: Спецификация вентразводки канального кондиционирования | C24: м² | D24: 0 | E24: =16*1.2 -> 19.2 | F24: 0 | G24: Убирается из сметы при отсутвии канального кондиционирования
A25: 3.6 | B25: Спецификация фреонового трубопровода и дренажа | C25: м² | D25: 313 | E25: =16*1.2 -> 19.2 | F25: 6009.6
A26: 3.7 | B26: Изометрическая схема вентразводки канального кондиционирования | C26: м² | D26: 0 | E26: =16*1.2 -> 19.2 | F26: 0 | G26: Убирается из сметы при отсутвии канального кондиционирования
A27: 3.8 | B27: Изометрическая схема фреонового трубопровода и дренажа | C27: м² | D27: 313 | E27: =16*1.2 -> 19.2 | F27: 6009.6
A28: 3.9 | B28: Техническое задание на подключение силового электропитания и автоматизации кондиционирования | C28: м² | D28: 313 | E28: =16*1.2 -> 19.2 | F28: 6009.6
A29: 3.10 | B29: Изготовление пояснительной записки | C29: шт | D29: 1 | E29: =5000*1.2 -> 6000 | F29: =D29*E29 -> 6000
B30: ИТОГО за раздел кондиционирования: | F30: =SUM(F20:F29) -> 48067.2 | G30: при потребности в центральном охладителе в проекте, в ячейке площадь указывать 0 м², стоимость давать фиксированную 10 000 руб.
A31: 4 | B31: Проект увлажнения | F31: Сумма
A32: 4.1 | B32: Объект от 500 м² до 1000 м² | C32: шт | D32: 0 | E32: 10000 | F32: =E32*D32 -> 0
B33: ИТОГО по предложению | F33: =F9+F18+F30+F32 -> 182155.2
A35: 5 | B35: ОПЦИОНАЛЬНО | F35: Сумма
A36: 5.1 | B36: Дополнительная рабочая встреча | C36: шт | D36: 1 | E36: 5000 | F36: =E36*D36 -> 5000
A37: 5.4 | B37: VAV система | C37: шт | D37: 1 | E37: 10000 | F37: 10000
A38: 5.5 | B38: Выезд на объект до 50км/МКАД | C38: шт | D38: 1 | E38: 8000 | F38: 8000
A41: При нестандартных объектах суммы разделов умножать на дополнительный коэффициент
A42: 1 | B42: Коммерческие и административные помещения | E42: 0.7
A43: 2 | B43: Фахверк | E43: 1.5
B45: Примечания:
A46: 1 | B46: Возможно изготовление монтажной схемы. Тогда позиции, общие данные, пояснительная записка, изометрические схемы вычитаются из стоимости проекта
A47: 2 | B47: Средняя цена за 1 м² | D47: м² | E47: руб/м²
B48: Проект вентиляции | D48: =D11 -> 860 | E48: =F18/D48 -> 137.7767442
B49: Проект канального кондиционирования | D49: =D20 -> 313 | E49: =F30/D49 -> 153.5693291
B50: Проект настенного кондиционирования | D50: =D25 -> 313 | E50: =F30/D50 -> 153.5693291
B51: Проект увлажнения | D51: =D16 -> 860 | E51: =F32/D51 -> 0
A52: 3 | B52: ОБЩАЯ СТОИМОСТЬ | E52: =F33/D16 -> 211.8083721

Sheet Узлы
A1: С электрическим догревателем: | D1: 2023-07-07
B2: Розничная цена | C2: Скидка | D2: Цена Гуд Вуд
A3: 1. Приточно-вытяжная установка Zenit Standart 300 Е с 2ступ рекуператором, электронагревателем, автоматикой | B3: 240000 | C3: 0.3 | D3: =B3*0.7 -> 168000
A4: Заслонка D160 с электроприводом и возвратной пружиной | B4: 15500 | C4: 0.3 | D4: =B4*0.7 -> 10850
A5: Блок охлаждения:
A6: NEW COOL-BOX i 160D-400 2,0 кВ | B6: 58000 | C6: 0.3 | D6: 40600
A7: ККБ NEW COOL-BOX k 2.0 | B7: 60000 | C7: 0.3 | D7: 42000
A8: Комплект фильтров для первого обслуживания (Фильтр карманный F5) | B8: 1800 | C8: 0.3 | D8: 1260
A9: Комбинированная приточно-вытяжная решётка 160D | B9: 8450 | C9: 0.3 | D9: 5915
A11: 1. Приточно-вытяжная установка Zenit 500 Standart EL/EL Е 2ст рекуператором, с электронагревателем, автоматикой | B11: 270000 | C11: 0.3 | D11: =B11*0.7 -> 189000
A12: Заслонка D200 с электроприводом и возвратной пружиной | B12: 15950 | C12: 0.3 | D12: =B12*0.7 -> 11165
A13: Блок охлаждения:
A14: NEW COOL-BOX i 200D-600 2,5 кВт | B14: 62000 | C14: 0.3 | D14: =B14*0.7 -> 43400
A15: ККБ NEW COOL-BOX k 2.5 | B15: 66000 | C15: 0.3 | D15: =B15*0.7 -> 46200
A16: Комплект фильтров для первого обслуживания (Фильтр карманный F5, комплект 2 шт.) | B16: 2000 | C16: 0.3 | D16: =B16*0.7 -> 1400
A17: Комбинированная приточно-вытяжная решётка 200D | B17: 9750 | C17: 0.3 | D17: =B17*0.7 -> 6825
A19: 1. Приточно-вытяжная установка Zenit 700 Standart EL/EL Е 2ст рекуператором, с электронагревателем, автоматикой | B19: 285000 | C19: 0.3 | D19: =B19*0.7 -> 199500
A20: Заслонка D250 с электроприводом и возвратной пружиной | B20: 16100 | C20: 0.3 | D20: =B20*0.7 -> 11270
A21: Блок охлаждения: | D21: 0
A22: NEW COOL-BOX i 250D-1000 3,5 кВт | B22: 80000 | C22: 0.3 | D22: 56000
A23: ККБ NEW COOL-BOX k 3.5 | B23: 87000 | C23: 0.3 | D23: 60900
A24: Комплект фильтров для первого обслуживания (Фильтр карманный F5, комплект 2 шт.) | B24: 2500 | C24: 0.3 | D24: 1750
A25: Комбинированная приточно-вытяжная решётка 250D | B25: 12350 | C25: 0.3 | D25: 8645
A27: 1. Приточно-вытяжная установка Zenit 350 HECO EL/EL Е с 3ступ рекуперацией с электронагревателем, автоматикой | B27: 260000 | C27: 0.3 | D27: =B27*0.7 -> 182000
A28: Заслонка D160 с электроприводом и возвратной пружиной | B28: 15500 | C28: 0.3 | D28: =B28*0.7 -> 10850
A29: Блок охлаждения:
A30: NEW COOL-BOX i 160D-400 2,0 кВ | B30: 58000 | C30: 0.3 | D30: =B30*0.7 -> 40600
A31: ККБ NEW COOL-BOX k 2.0 | B31: 60000 | C31: 0.3 | D31: =B31*0.7 -> 42000
A32: Комплект фильтров для первого обслуживания (Фильтр карманный F5) | B32: 1800 | C32: 0.3 | D32: =B32*0.7 -> 1260
A33: Комбинированная приточно-вытяжная решётка 160D | B33: 8450 | C33: 0.3 | D33: =B33*0.7 -> 5915
A35: 1. Приточно-вытяжная установка Zenit 550 HECO EL/EL E с рекуперацией с электронагревателем, автоматикой | B35: 320000 | C35: 0.3 | D35: =B35*0.7 -> 224000
A36: Заслонка D200 с электроприводом и возвратной пружиной | B36: 15950 | C36: 0.3 | D36: =B36*0.7 -> 11165
A37: Блок охлаждения:
A38: NEW COOL-BOX i 200D-600 2,5 кВт | B38: 62000 | C38: 0.3 | D38: 43400
A39: ККБ NEW COOL-BOX k 2.5 | B39: 66000 | C39: 0.3 | D39: 46200
A40: Комплект фильтров для первого обслуживания (Фильтр карманный F5, комплект 2 шт.) | B40: 2000 | C40: 0.3 | D40: 1400
A41: Комбинированная приточно-вытяжная решётка 200D | B41: 9750 | C41: 0.3 | D41: 6825
A43: 1. Приточно-вытяжная установка Zenit 750 HECO EL/EL E с рекуперацией с электронагревателем, автоматикой | B43: 430000 | C43: 0.3 | D43: =B43*0.7 -> 301000
A44: Заслонка D250 с электроприводом и возвратной пружиной | B44: 16100 | C44: 0.3 | D44: =B44*0.7 -> 11270
A45: Блок охлаждения:
A46: NEW COOL-BOX i 250D-1000 3,5 кВт | B46: 80000 | C46: 0.3 | D46: 56000
A47: ККБ NEW COOL-BOX k 3.5 | B47: 87000 | C47: 0.3 | D47: 60900
A48: Комплект фильтров для первого обслуживания (Фильтр карманный F5, комплект 2 шт.) | B48: 2750 | C48: 0.3 | D48: 1925
A49: Комбинированная приточно-вытяжная решётка 250D | B49: 12350 | C49: 0.3 | D49: 8645
A51: С водяным догревателем:
A52: 1. Приточно-вытяжная установка Zenit 700 Standart EL/EL W 2ст рекуператором, с водяным нагревателем и смесительным узлом, автоматикой | B52: 440000 | C52: 0.3 | D52: =B52*0.7 -> 308000
A53: Заслонка D250 с электроприводом и возвратной пружиной | B53: 16100 | C53: 0.3 | D53: =B53*0.7 -> 11270
A54: Блок охлаждения: | D54: =B54*0.7 -> 0
A55: NEW COOL-BOX i 250D-1000 3,5 кВт | B55: 80000 | C55: 0.3 | D55: =B55*0.7 -> 56000
A56: ККБ NEW COOL-BOX k 3.5 | B56: 87000 | C56: 0.3 | D56: =B56*0.7 -> 60900
A57: Блок увлажнителя:
A58: HumiBox Pump 3 | B58: 140000 | C58: 0.3 | D58: =B58*0.7 -> 98000
A59: HumiBox 1000 | B59: 125500 | C59: 0.3 | D59: =B59*0.7 -> 87850
A60: Комплект фильтров для первого обслуживания (Фильтр карманный F5, комплект 2 шт.) | B60: 2500 | C60: 0.3 | D60: =B60*0.7 -> 1750
A61: Комбинированная приточно-вытяжная решётка 250D | B61: 12350 | C61: 0.3 | D61: =B61*0.7 -> 8645
A63: 1. Приточно-вытяжная установка Zenit 550 HECO EL/EL W с рекуперацией с водяным нагревателем и смесительным узлом, автоматикой | B63: 410000 | C63: 0.3 | D63: =B63*0.7 -> 287000
A64: Заслонка D200 с электроприводом и возвратной пружиной | B64: 15950 | C64: 0.3 | D64: =B64*0.7 -> 11165
A65: Блок охлаждения:
A66: NEW COOL-BOX i 200D-600 2,5 кВт | B66: 62000 | C66: 0.3 | D66: =B66*0.7 -> 43400
A67: ККБ NEW COOL-BOX k 2.5 | B67: 66000 | C67: 0.3 | D67: =B67*0.7 -> 46200
A68: Блок увлажнителя:
A69: HumiBox Pump 3 | B69: 140000 | C69: 0.3 | D69: =B69*0.7 -> 98000
A70: HumiBox 600 | B70: 85000 | C70: 0.3 | D70: =B70*0.7 -> 59500
A71: Комплект фильтров для первого обслуживания (Фильтр карманный F5, комплект 2 шт.) | B71: 2000 | C71: 0.3 | D71: =B71*0.7 -> 1400
A72: Комбинированная приточно-вытяжная решётка 200D | B72: 9750 | C72: 0.3 | D72: =B72*0.7 -> 6825
A74: 1. Приточно-вытяжная установка Zenit 750 HECO EL/EL W с рекуперацией с электронагревателем, автоматикой | B74: 600000 | C74: 0.3 | D74: =B74*0.7 -> 420000
A75: Заслонка D250 с электроприводом и возвратной пружиной | B75: 16100 | C75: 0.3 | D75: =B75*0.7 -> 11270
A76: Блок охлаждения:
A77: NEW COOL-BOX i 250D-1000 3,5 кВт | B77: 80000 | C77: 0.3 | D77: =B77*0.7 -> 56000
A78: ККБ NEW COOL-BOX k 3.5 | B78: 87000 | C78: 0.3 | D78: =B78*0.7 -> 60900
A79: Блок увлажнителя:
A80: HumiBox Pump 3 | B80: 140000 | C80: 0.3 | D80: =B80*0.7 -> 98000
A81: HumiBox 1000 | B81: 125500 | C81: 0.3 | D81: =B81*0.7 -> 87850
A82: Комплект фильтров для первого обслуживания (Фильтр карманный F5, комплект 2 шт.) | B82: 2750 | C82: 0.3 | D82: =B82*0.7 -> 1925
A83: Комбинированная приточно-вытяжная решётка 250D | B83: 12350 | C83: 0.3 | D83: =B83*0.7 -> 8645
A85: Датчики СО2 и автоматика:
A86: Встроенный в установку датчик CO2 | B86: 10200 | C86: 0.3 | D86: =B86*0.7 -> 7140
A87: Встроенный в установку датчик Stereo VAV | B87: 12000 | C87: 0.3 | D87: =B87*0.7 -> 8400
A88: Встроенный в установку датчик VAV | B88: 10000 | C88: 0.3 | D88: =B88*0.7 -> 7000
A89: Пульт в сборе | B89: 25000 | C89: 0.3 | D89: =B89*0.7 -> 17500
A91: Воздуховод гофрированный 2-х слойный в бухте D75, 50м | B91: 25000 | C91: 0.3 | D91: =B91*0.7 -> 17500
A92: Муфты D75 для подключения диффузоров | B92: 500 | C92: =$C$91 -> 0.3 | D92: =B92*0.7 -> 350
A93: Фланец Schiberg d75 мм | B93: 500 | C93: =$C$91 -> 0.3 | D93: 350
A94: Заглушка Schiberg d75 | B94: 150 | C94: 0.3 | D94: 105
A95: Дроссель для гофрир. воздуховода Schiberg d75 | B95: 150 | C95: 0.3 | D95: 105
A96: Муфта соединительная Schiberg d75 - 300 руб | B96: 300 | C96: 0.3 | D96: 210
A97: Кронштейны для напольного/настенного крепления - 5'000 руб. (кронштейн настенный, 4 виброопоры, площадка крепежная) | B97: 5000 | C97: 0.3 | D97: 3500
A99: Комплект шумоглушителей и дроссельных клапанов:
A100: Заслонка 125 с приводом и возвратной пружиной - 14850 руб. | B100: 14850 | C100: 0.3 | D100: =B100*0.7 -> 10395 | E100: =SUM(D100:D104)/5 -> 11340
A101: Заслонка 160 с приводом и возвратной пружиной - 15500 руб. | B101: 15500 | C101: 0.3 | D101: =B101*0.7 -> 10850
A102: Заслонка 200 с приводом и возвратной пружиной - 15950 руб. | B102: 15950 | C102: 0.3 | D102: 11165
A103: Заслонка 250 с приводом и возвратной пружиной - 16100 руб. | B103: 16100 | C103: 0.3 | D103: 11270
A104: Заслонка 315 с приводом и возвратной пружиной - 18600 руб. | B104: 18600 | C104: 0.3 | D104: 13020
A106: Шумоглушитель для круглых каналов Д125/900 - 6400 руб. | B106: 6400 | C106: 0.3 | D106: =B106*0.7 -> 4480 | E106: =SUM(D106:D115)/10 -> 6237
A107: Шумоглушитель для круглых каналов Д160/900 - 6700 руб. | B107: 6700 | C107: 0.3 | D107: =B107*0.7 -> 4690
A108: Шумоглушитель для круглых каналов Д200/900 - 8100 руб. | B108: 8100 | C108: 0.3 | D108: 5670
A109: Шумоглушитель для круглых каналов Д250/900 - 9800 руб. | B109: 9800 | C109: 0.3 | D109: 6860
A110: Шумоглушитель для круглых каналов Д315/900 - 15500 руб. | B110: 15500 | C110: 0.3 | D110: 10850
A111: Шумоглушитель для круглых каналов Д125/600 - 5900 руб. | B111: 5900 | C111: 0.3 | D111: 4130
A112: Шумоглушитель для круглых каналов Д160/600 - 6400 руб. | B112: 6400 | C112: 0.3 | D112: 4480
A113: Шумоглушитель для круглых каналов Д200/600 - 7100 руб. | B113: 7100 | C113: 0.3 | D113: 4970
A114: Шумоглушитель для круглых каналов Д250/600 - 8700 руб. | B114: 8700 | C114: 0.3 | D114: 6090
A115: Шумоглушитель для круглых каналов Д315/600 - 14500 руб | B115: 14500 | C115: 0.3 | D115: 10150
A117: Расходные материалы, крепёж на первый этап | D117: 3000 | E117: цена примерная со слов Виктора
A118: Электроматериал для подключения вент.установки | D118: =14500/4 -> 3625 | E118: узел электрики на ПНР /4 со слов Виктора
A119: Комплект из счёта *2 | D119: =(2174+2440)*2+10270 -> 19498 | E119: согласно счёта (см. правее)
A121: Коллектор (воздухораспределительная коробка) на 8 выходов | B121: 8400 | C121: 0.15 | D121: =B121*0.85 -> 7140
A122: Коллектор (воздухораспределительная коробка) на 12 выходов | B122: 13800 | C122: 0.15 | D122: =B122*0.85 -> 11730
A123: Коллектор (воздухораспределительная коробка) на 16 выходов | B123: 18400 | C123: 0.15 | D123: 15640
A124: Коллектор (воздухораспределительная коробка) на 20 выходов | B124: 25000 | C124: 0.15 | D124: 21250
A126: Адаптеры для подключения плоских решеток (длина до 500) | B126: 5400 | C126: 0.15 | D126: 4590
A128: Магистральные воздуховоды и фасонные изделия | B128: 44045 | D128: =B128 -> 44045 | E128: согласно счёта (см. правее)
A129: Изоляция, крепеж, расходные материалы | B129: =18600+1900+4614 -> 25114 | D129: =B129 -> 25114 | E129: согласно счёта (см. правее ниже)
A131: Пленум SCHIBERG | B131: 4400 | C131: 0.15 | D131: =B131*0.85 -> 3740
A133: Установка диффузора/решётки | D133: 3000 | E133: среднее значение
U142: изоляция

Sheet Работы
A1: ОПЛАТА РАБОТ ПО ВЕНТИЛЯЦИИ прораб и бригада | B1: бригада | C1: прораб
A2: Монтаж вентиляционной установки (включая все подключения)+ пробный запуск с настройкой | B2: 20000 | C2: =B2*20% -> 4000
A3: Монтаж системы увлажнения воздуха (включая все подключения) + пробный запуск с настройкой | B3: 10000 | C3: =B3*20% -> 2000
A4: Монтаж датчикаов влажности (комплект)/пульта | B4: 1575 | C4: 315
A5: Установка стенового вентиля Out/in с проходными отверстиями | B5: 10000 | C5: 2000
A6: Установка и подключение приточного/вытяжного диффузора | B6: 700 | C6: 140
A7: Прокладка гибких воздуховодов до приточного/вытяжного диффузора (комплект на диффузор) с установкой муфты | B7: 3500 | C7: 700
A8: Установка распределительной коробки и подключение воздуховодов | B8: 3000 | C8: 600
A9: Прокладка трассы от установки до распределительной коробки (комплект) | B9: 6500 | C9: 1300
A10: Установка шумоглушителя | B10: 2500 | C10: 500
A11: ПНР ПВУ/ отдельный выезд + ГСМ | B11: 12500 | C11: 2500
A12: ПНР увлажнителя/ совместно с ПВУ | B12: 3500 | C12: 700
A13: Алмазное бурение | B13: 10000 | C13: 2000
A14: ГСМ | B14: 1500 | C14: 300
A15: Уборка мусора, наведение порядка на территории | B15: 1500 | C15: 300
A16: Вывоз мусора с объекта своими силами | B16: 2500 | C16: 500
A17: Разгрузо-погрузочные работы (скрытые и котельная) | B17: 1500 | C17: 300

Sheet Турков (не брать)
A2: =TODAY() -> 2023-07-07 | B2: Данный сметный расчёт действителен 7 календарных дней. По истечению срока, цены могут быть изменены.
A3: Сметный расчет Вентиляция | I3: пие
A4: Приточная вентиляция
A5: Материалы/услуги | B5: Описание | C5: Кол-во | D5: Ед.изм | E5: Мат-ал, руб | F5: Работа, руб | G5: Итого, руб | I5: Материал | J5: Бригада | K5: Прораб | L5: Итого | M5: Рента
A7: Первый этап | B7: Воздуховод гофрированный 2-х слойный в бухте 50м | C7: 3 | D7: бухт | E7: =I7/0.7 -> 75000 | G7: =E7+F7 -> 75000 | I7: =C7*Узлы!D91 -> 52500 | L7: =SUM(I7:K7) -> 52500 | M7: =IF(G7=0,"",(G7-I7)/G7) -> 0.3
B8: Комплект прокладок, муфт, заглушек для гофрированного воздуховода (на 1 выход) | C8: 24 | D8: шт | E8: =I8/0.7 -> 38400 | G8: 38400 | I8: =C8*(Узлы!D92+Узлы!D93+Узлы!D94+Узлы!D95+Узлы!D96) -> 26880 | L8: =SUM(I8:K8) -> 26880 | M8: =IF(G8=0,"",(G8-I8)/G8) -> 0.3
B9: Коллектор (воздухораспределительная коробка) на 8 выходов | D9: бухт | E9: =I9/0.85 -> 0 | G9: 0 | I9: =C9*Узлы!D121 -> 0 | J9: =C9*Работы!$B$8 -> 0 | L9: 0
B10: Коллектор (воздухораспределительная коробка) на 12 выходов | C10: 2 | D10: шт | E10: =I10/0.85 -> 27600 | G10: 27600 | I10: =C10*Узлы!D122 -> 23460 | J10: =C10*Работы!$B$8 -> 6000 | K10: =J10*20% -> 1200 | L10: 30660 | M10: 0.15
B11: Коллектор (воздухораспределительная коробка) на 16 выходов | D11: шт | E11: =I11/0.85 -> 0 | G11: 0 | I11: =C11*Узлы!D123 -> 0 | J11: =C11*Работы!$B$8 -> 0 | K11: =J11*20% -> 0 | L11: 0
B12: Коллектор (воздухораспределительная коробка) на 20 выходов | D12: шт | E12: =I12/0.85 -> 0 | G12: 0 | I12: =C12*Узлы!D124 -> 0 | J12: =C12*Работы!$B$8 -> 0 | K12: 0 | L12: 0
B13: Муфты D125 для подключения диффузоров (монтаж трасс воздуховодов) | C13: 10 | D13: шт | E13: =I13/0.7 -> 53428.57143 | G13: 53428.57143 | I13: =C13*Узлы!D131 -> 37400 | J13: =C13*Работы!B7 -> 35000 | K13: 7000 | L13: 79400 | M13: 0.3
B14: Адаптеры для подключения плоских решеток (длина до 500) | C14: 10 | D14: шт | E14: =I14/0.85 -> 54000 | G14: 54000 | I14: =C14*Узлы!D126 -> 45900 | J14: =C14*Работы!B7 -> 35000 | K14: 7000 | L14: 87900 | M14: 0.15
B15: Расходные материалы, крепёж | C15: 1 | D15: шт | E15: 4285.714286 | G15: 4285.714286 | I15: =C15*Узлы!D117 -> 3000 | L15: =SUM(I15:K15) -> 3000 | M15: 0.3
A16: Монтаж системы вентиляции 1 этап | F16: =SUM(J7:K14)/0.5 -> 182400 | L16: 0 | M16: =IF(F16=0,"",(F16-SUM(J7:K15))/F16) -> 0.5
A17: Второй этап | B17: 1. Приточно-вытяжная установка Zenit 500 Standart EL/EL Е 2ст рекуператором, с электронагревателем, автоматикой | D17: шт | E17: =I17/0.7 -> 0 | G17: =E17+F17 -> 0 | I17: =C17*Узлы!D11 -> 0 | J17: =C17*Работы!B2 -> 0 | K17: 0 | L17: 0 | M17: =IF(G17=0,"",(G17-I17)/G17) -> 
B18: Заслонка D200 с электроприводом и возвратной пружиной | D18: шт | E18: =I18/0.7 -> 0 | G18: =E18+F18 -> 0 | I18: =C18*Узлы!D12 -> 0 | L18: 0 | M18: =IF(G18=0,"",(G18-I18)/G18) -> 
B19: Блок охлаждения 2,5кВт: | D19: шт | E19: 0 | G19: 0 | I19: =C19*(Узлы!D14+Узлы!D15) -> 0 | L19: 0
B20: NEW COOL-BOX i 200D-600 2,5 кВт | D20: шт | E20: 0 | G20: 0 | I20: =C20*N20*$I$2 -> 0 | L20: 0
B21: ККБ NEW COOL-BOX k 2.5 | D21: шт | E21: 0 | G21: 0 | I21: 0 | L21: 0
B22: Комплект фильтров для первого обслуживания (Фильтр карманный F5, комплект 2 шт.) | D22: шт | E22: 0 | G22: 0 | I22: =C22*Узлы!D16 -> 0 | L22: 0
B23: Комбинированная приточно-вытяжная решётка 200D | D23: шт | E23: 0 | G23: 0 | I23: =C23*Узлы!D17 -> 0 | J23: =C23*Работы!B5 -> 0 | K23: 0 | L23: 0
B24: 1. Приточно-вытяжная установка Zenit 700 Standart EL/EL Е 2ст рекуператором, с электронагревателем, автоматикой | D24: шт | E24: 0 | G24: 0 | I24: =C24*Узлы!D19 -> 0 | J24: =C24*Работы!B2 -> 0 | K24: 0 | L24: 0
B25: Заслонка D250 с электроприводом и возвратной пружиной | D25: шт | E25: 0 | G25: 0 | I25: =C25*Узлы!D20 -> 0 | L25: 0
B26: Блок охлаждения 3,5кВт: | D26: шт | E26: 0 | G26: 0 | I26: =C26*(Узлы!D22+Узлы!D23) -> 0 | L26: 0
B27: NEW COOL-BOX i 250D-1000 3,5 кВт | D27: шт | E27: 0 | G27: 0 | I27: =C27*Узлы!D22 -> 0 | L27: 0
B28: ККБ NEW COOL-BOX k 3.5 | D28: шт | E28: 0 | G28: 0 | I28: =C28*Узлы!D23 -> 0 | L28: 0
B29: Комплект фильтров для первого обслуживания (Фильтр карманный F5, комплект 2 шт.) | D29: шт | E29: 0 | G29: 0 | I29: =C29*Узлы!D24 -> 0 | L29: 0
B30: Комбинированная приточно-вытяжная решётка 250D | D30: шт | E30: 0 | G30: 0 | I30: =C30*Узлы!D25 -> 0 | J30: =C30*Работы!B5 -> 0 | K30: 0 | L30: 0
B31: 1. Приточно-вытяжная установка Zenit 350 HECO EL/EL Е с 3ступ рекуперацией с электронагревателем, автоматикой | D31: шт | E31: 0 | G31: 0 | I31: =C31*Узлы!D27 -> 0 | J31: =C31*Работы!B2 -> 0 | K31: 0 | L31: 0
B32: Заслонка D160 с электроприводом и возвратной пружиной | D32: шт | E32: 0 | G32: 0 | I32: =C32*Узлы!D28 -> 0 | L32: 0
B33: Блок охлаждения 2,0кВт: | D33: шт | E33: 0 | G33: 0 | I33: =C33*(Узлы!D30+Узлы!D31) -> 0 | L33: 0
B34: NEW COOL-BOX i 160D-400 2,0 кВ | D34: шт | E34: 0 | G34: 0 | I34: =C34*Узлы!D30 -> 0 | L34: 0
B35: ККБ NEW COOL-BOX k 2.0 | D35: шт | E35: 0 | G35: 0 | I35: =C35*Узлы!D31 -> 0 | L35: 0
B36: Комплект фильтров для первого обслуживания (Фильтр карманный F5) | D36: шт | E36: 0 | G36: 0 | I36: =C36*Узлы!D32 -> 0 | L36: 0
B37: Комбинированная приточно-вытяжная решётка 160D | D37: шт | E37: 0 | G37: 0 | I37: =C37*Узлы!D33 -> 0 | J37: =C37*Работы!B5 -> 0 | K37: 0 | L37: 0
B38: 1. Приточно-вытяжная установка Zenit 550 HECO EL/EL E с рекуперацией с электронагревателем, автоматикой | C38: 1 | D38: шт | E38: 320000 | G38: 320000 | I38: =C38*Узлы!D35 -> 224000 | J38: =C38*Работы!B2 -> 20000 | K38: 4000 | L38: 248000 | M38: 0.3
B39: Заслонка D200 с электроприводом и возвратной пружиной | D39: шт | E39: 0 | G39: 0 | I39: =C39*Узлы!D36 -> 0 | L39: 0
B40: Блок охлаждения 2,5кВт: | D40: шт | E40: 0 | G40: 0 | I40: =C40*(Узлы!D38+Узлы!D39) -> 0 | L40: 0
B41: NEW COOL-BOX i 200D-600 2,5 кВт | D41: шт | E41: 0 | G41: 0 | I41: =C41*Узлы!D38 -> 0 | L41: 0
B42: ККБ NEW COOL-BOX k 2.5 | D42: шт | E42: 0 | G42: 0 | I42: =C42*Узлы!D39 -> 0 | L42: 0
B43: Комплект фильтров для первого обслуживания (Фильтр карманный F5, комплект 2 шт.) | D43: шт | E43: 0 | G43: 0 | I43: =C43*Узлы!D40 -> 0 | L43: 0
B44: Комбинированная приточно-вытяжная решётка 200D | C44: 1 | D44: шт | E44: 9750 | G44: 9750 | I44: =C44*Узлы!D41 -> 6825 | J44: =C44*Работы!B5 -> 10000 | K44: 2000 | L44: 18825 | M44: 0.3
B45: 1. Приточно-вытяжная установка Zenit 750 HECO EL/EL E с рекуперацией с электронагревателем, автоматикой | D45: шт | E45: 0 | G45: 0 | I45: =C45*Узлы!D43 -> 0 | J45: =C45*Работы!B2 -> 0 | K45: 0 | L45: 0
B46: Заслонка D250 с электроприводом и возвратной пружиной | D46: шт | E46: 0 | G46: 0 | I46: =C46*Узлы!D44 -> 0 | L46: 0
B47: Блок охлаждения 3,5кВт: | D47: шт | E47: 0 | G47: 0 | I47: =C47*(Узлы!D46+Узлы!D47) -> 0 | L47: 0
B48: NEW COOL-BOX i 250D-1000 3,5 кВт | D48: шт | E48: 0 | G48: 0 | I48: =C48*Узлы!D46 -> 0 | L48: 0
B49: ККБ NEW COOL-BOX k 3.5 | D49: шт | E49: 0 | G49: 0 | I49: =C49*Узлы!D47 -> 0 | L49: 0
B50: Комплект фильтров для первого обслуживания (Фильтр карманный F5, комплект 2 шт.) | D50: шт | E50: 0 | G50: 0 | I50: =C50*Узлы!D48 -> 0 | L50: 0
B51: Комбинированная приточно-вытяжная решётка 250D | D51: шт | E51: 0 | G51: 0 | I51: =C51*Узлы!D49 -> 0 | J51: =C51*Работы!B5 -> 0 | K51: 0 | L51: 0
B52: Кронштейны для напольного/настенного крепления | C52: 1 | D52: компл. | E52: =I52/0.7 -> 5000 | G52: =E52+F52 -> 5000 | I52: =C52*Узлы!D97 -> 3500 | L52: 3500 | M52: 0.3
B53: Электроподключения установки, пульта, заслонок | C53: 1 | D53: компл. | E53: =I53/0.7 -> 5178.571429 | G53: =E53+F53 -> 5178.571429 | I53: =C53*Узлы!D118 -> 3625 | L53: 3625 | M53: 0.3
B54: Датчик СО2 | C54: 2 | D54: шт | E54: =I54/0.7 -> 20400 | G54: 20400 | I54: =C54*Узлы!D86 -> 14280 | L54: 14280 | M54: 0.3
B55: Пульт в сборе | C55: 1 | D55: шт | E55: =I55/0.7 -> 25000 | G55: 25000 | I55: =C55*Узлы!D89 -> 17500 | L55: 17500 | M55: 0.3
B56: Блок увлажнителя | D56: компл. | L56: =SUM(I56:K56) -> 0
B57: Комплект шумоглушителей и дроссельных клапанов (2шумоглишителя, 2клапана) | C57: 1 | D57: компл. | E57: =I57/0.7 -> 27854.28571 | G57: 27854.28571 | I57: =C57*Узлы!D119 -> 19498 | J57: =C57*(Работы!B10*2) -> 5000 | K57: 1000 | L57: 25498 | M57: 0.3
B58: Магистральные воздуховоды и фасонные изделия | C58: 1 | D58: компл. | E58: =I58/0.7 -> 62921.42857 | G58: 62921.42857 | I58: =C58*Узлы!D128 -> 44045 | J58: =C10*Работы!B9 -> 13000 | K58: 2600 | L58: 59645 | M58: 0.3
B59: Установка диффузора/решётки | C59: 20 | D59: шт | E59: =I59/0.7 -> 85714.28571 | G59: 85714.28571 | I59: =C59*Узлы!D133 -> 60000 | L59: 60000 | M59: 0.3
B60: Изоляция, крепеж, расходные материалы | C60: 1 | D60: компл. | E60: 35877.14286 | G60: 35877.14286 | I60: =C60*Узлы!D129 -> 25114 | L60: 25114 | M60: 0.3
M61: =IF(G61=0,"",(G61-L61)/G61) -> 
A62: Проектирование | B62: разработка документов для монтажа системы вентиляции | D62: Усл. | F62: =(J62+K62)/0.8 -> 0 | G62: =E62+F62 -> 0 | L62: =SUM(J62:K62) -> 0
A63: Монтаж системы вентиляции 2 этап | D63: Усл. | F63: =SUM(J17:K60)/0.5 -> 115200 | G63: =F63 -> 115200 | L63: =SUM(J63:K63) -> 0 | M63: =IF(G63=0,"",(G63-SUM(J17:K60))/G63) -> 0.5
A64: Итого материал: | F64: =SUM(E7:E60) -> 850410 | L64: =SUM(I7:I63) -> 607527 | M64: =IF(F64=0,"",(F64-L64)/F64) -> 0.2856069425
A65: Работа: | F65: =SUM(F7:F63) -> 297600 | L65: =SUM(J7:K63) -> 148800 | M65: =IF(F65=0,"",(F65-L65)/F65) -> 0.5
A66: Дополнительно
A67: Материалы/услуги | B67: Описание | C67: Кол-во | D67: Ед.изм | E67: Мат-ал, руб | F67: Работа, руб | G67: Итого, руб | I67: Материал | J67: Бригада | K67: Прораб | L67: Итого | M67: Рента
A68: Проходные отверстия в плите | B68: Алмазное сверление | C68: 1 | D68: шт. | F68: =IF(C68=0,0,IF(C68<4,11000,IF(C68>3,9000+2300*(C68-3)))) -> 11000 | G68: =F68+E68 -> 11000 | J68: 10000
A69: Подготовительные и накладные расходы | B69: Включают разработку комплекта документов для монтажа, проверку ОТК и приемку каждого этапа работ инженерами технического надзора, соблюдение стандарта компании | C69: 1 | D69: Усл. | F69: =51000 -> 51000 | G69: =F69*C69 -> 51000 | I69: =12500+(C59*700) -> 26500 | J69: =(1500+1500+1500)*2 -> 9000 | K69: =2500*2 -> 5000 | L69: =(5500*2)+6500 -> 17500
A70: Транспортные расходы | B70: Доставка оборудования и материалов на объект | C70: 1 | D70: усл. | F70: =L70/0.8 -> 37500 | G70: =F70 -> 37500 | L70: 30000
A71: Итого по смете: | F71: =SUM(F64:G65,G68:G70) -> 1247510 | I71: =SUM(I7:I63)+I69 -> 634027 | J71: =SUM(J7:J63,J68:J70) -> 143000 | K71: =SUM(K7:K63,K68:K70) -> 29800 | L71: =SUM(L68:L70,I71:K71) -> 854327 | M71: =IF(F73=0,"",(F73-L71)/F73) -> 0.3151742271
A72: Скидка:
A73: Итого по смете со скидкой: | F73: =F71-G72 -> 1247510
A74: * При выполнении разводки под потолком необходимо добавить декоративный короб. При выполнении разводки в межэтажном перекрытии необходима дополнительная обрешётка.
A75: ** ПНР выполняется по факту готовности объекта | G75: =Узлы!D1 -> 2023-07-07
J76: Коэффициент
J78: Мат | K78: Раб
J79: 1 | K79: 1
